bitfinex/quotes_BTCUSD_20241201
["timestamp","ask_amount","ask_price","bid_price","bid_amount"]
[1733017200891,0.0047278,96515.0,96514.0,0.00455491]
[1733017201093,0.0047278,96515.0,96514.0,0.0009924]
[1733017201361,0.0047278,96515.0,96514.0,0.00455491]
[1733017202212,0.0037278,96515.0,96514.0,0.00455491]
[1733017202662,0.0037278,96515.0,96514.0,0.00855491]
[1733017203076,0.0017278,96515.0,96514.0,0.00855491]
[1733017203290,0.0027278,96515.0,96514.0,0.01155491]
[1733017203924,0.0027278,96515.0,96514.0,0.02257424]
[1733017204185,0.0017278,96515.0,96514.0,0.01557424]
[1733017204385,0.0017278,96515.0,96514.0,0.01757424]
[1733017204798,0.08628673,96515.0,96514.0,0.01557424]
[1733017204998,0.08912011,96515.0,96514.0,0.00755491]
[1733017205267,0.08912011,96515.0,96514.0,0.0039924]
[1733017205468,0.08912011,96515.0,96514.0,0.24105499]
[1733017205894,0.08912011,96515.0,96514.0,0.24005499]
[1733017206310,0.08912011,96515.0,96514.0,0.00454753]
[1733017206660,0.08812011,96515.0,96514.0,0.00754753]
[1733017207058,0.08812011,96515.0,96514.0,0.24105499]
[1733017207528,0.08628673,96515.0,96514.0,0.23805499]
[1733017207661,0.08628673,96515.0,96514.0,0.00654753]
[1733017207866,0.08628673,96515.0,96514.0,0.0029924]
[1733017208112,0.08628673,96515.0,96514.0,0.23550583]
[1733017208268,0.08628673,96515.0,96514.0,0.0029924]
[1733017210385,0.08628673,96515.0,96514.0,0.23548903]
[1733017210592,0.08628673,96515.0,96514.0,0.23635293]
[1733017210820,0.08628673,96515.0,96514.0,0.23990806]
[1733017213221,0.13528673,96515.0,96514.0,0.00741143]
[1733017213645,0.23996532,96515.0,96514.0,0.00741143]
[1733017213854,0.23813194,96515.0,96514.0,0.14590776]
[1733017214092,0.23813194,96515.0,96514.0,0.00541143]
[1733017214545,0.24013194,96515.0,96514.0,0.0018563]
[1733017214947,0.24013194,96515.0,96514.0,0.00540982]
[1733017215173,0.24013194,96515.0,96514.0,0.0018563]
[1733017215546,0.23813194,96515.0,96514.0,0.0018563]
[1733017215983,0.24113194,96515.0,96514.0,0.0018563]
[1733017216566,0.24713194,96515.0,96514.0,0.0018563]
[1733017216782,0.23813194,96515.0,96514.0,0.0018563]
[1733017216989,0.24613194,96515.0,96514.0,0.0018563]
[1733017228887,0.14328673,96515.0,96514.0,0.0018563]
[1733017229090,0.14512011,96515.0,96514.0,0.0018563]
[1733017229299,0.14512011,96515.0,96514.0,0.00597002]
[1733017230644,0.24796532,96515.0,96514.0,0.00597002]
[1733017230847,0.24613194,96515.0,96514.0,0.00597002]
[1733017233822,0.24613194,96515.0,96514.0,0.0018563]
[1733017235296,0.26639002,96515.0,96514.0,0.0018563]
[1733017244780,0.29875069,96515.0,96514.0,0.0018563]
[1733017244999,0.29875069,96515.0,96514.0,0.0008639]
[1733017266353,0.11733194,96515.0,96514.0,0.0008639]
[1733017266604,0.13838428,96515.0,96514.0,0.0008639]
[1733017266839,0.13838428,96515.0,96514.0,0.00546254]
[1733017268103,0.11733194,96515.0,96514.0,0.19180306]
[1733017269974,0.11733194,96515.0,96514.0,0.00546254]
[1733017269975,0.0097278,96515.0,96514.0,0.00546254]
[1733017270430,0.0097278,96515.0,96514.0,0.0230639]
[1733017270671,0.0097278,96515.0,96514.0,0.30257468]
[1733017270904,0.0067278,96515.0,96514.0,0.02765245]
[1733017271138,0.0087278,96515.0,96514.0,0.02765245]
[1733017271375,0.0037278,96515.0,96514.0,0.02765245]
[1733017271651,0.0017278,96515.0,96514.0,0.02765245]
[1733017272081,0.0017278,96515.0,96514.0,0.02965245]
[1733017272290,0.0017278,96515.0,96514.0,0.03165245]
[1733017272507,0.0017278,96515.0,96514.0,0.02965245]
[1733017272954,0.0017278,96515.0,96514.0,0.03165245]
[1733017273593,0.0017278,96515.0,96514.0,0.31087605]
[1733017273828,0.0017278,96515.0,96514.0,0.28867605]
[1733017274285,0.0017278,96515.0,96514.0,0.00945245]
[1733017277475,0.0017278,96515.0,96514.0,0.02045781]
[1733017284380,0.0017278,96515.0,96514.0,0.04345781]
[1733017284592,0.0017278,96515.0,96514.0,0.08829144]
[1733017284817,0.0017278,96515.0,96514.0,0.34113662]
[1733017285040,0.0017278,96515.0,96514.0,0.33930302]
[1733017285251,0.0017276,96527.0,96526.0,0.423198]
[1733017285497,0.0017276,96527.0,96526.0,0.4241958]
[1733017285738,0.0017276,96527.0,96526.0,0.42876589]
[1733017286605,0.00232288,96527.0,96526.0,0.42876589]
[1733017287257,0.00332288,96527.0,96526.0,0.43076589]
[1733017287476,0.00332288,96527.0,96526.0,0.43376589]
[1733017288797,0.00332288,96527.0,96526.0,0.5366111]
[1733017289689,0.00332288,96527.0,96526.0,0.54185217]
[1733017290354,0.00332288,96527.0,96526.0,0.55293429]
[1733017291229,0.00332288,96527.0,96526.0,0.54993429]
[1733017291454,0.00432288,96527.0,96526.0,0.55693429]
[1733017291942,0.00232288,96527.0,96526.0,0.54793429]
[1733017292386,0.00332288,96527.0,96526.0,0.54793429]
[1733017292612,0.00232288,96527.0,96526.0,0.54793429]
[1733017293074,0.00332288,96527.0,96526.0,0.55693429]
[1733017294328,0.00332288,96527.0,96526.0,0.56293429]
[1733017295997,0.0766,96555.0,96548.0,0.207148]
[1733017296211,0.0766,96555.0,96549.0,0.023]
[1733017296430,0.0766,96555.0,96549.0,0.02754566]
[1733017296643,0.0766,96555.0,96550.0,0.207146]
[1733017296853,0.0766,96555.0,96549.0,0.02754566]
[1733017297085,0.0766,96555.0,96551.0,0.00454419]
[1733017297297,0.0766,96555.0,96550.0,0.00454493]
[1733017297534,0.0766,96555.0,96552.0,0.00454346]
[1733017297753,0.0766,96555.0,96551.0,0.00454419]
[1733017297968,0.0766,96555.0,96549.0,0.023]
[1733017298190,0.0766,96555.0,96552.0,0.00454346]
[1733017298440,0.0766,96555.0,96549.0,0.023]
[1733017298657,0.0766,96555.0,96552.0,0.00454346]
[1733017298879,0.0037272,96553.0,96549.0,0.023]
[1733017299092,0.0017272,96553.0,96552.0,0.00454346]
[1733017299305,0.0037272,96553.0,96549.0,0.023]
[1733017299521,0.08508613,96553.0,96552.0,0.00454346]
[1733017299731,0.08508613,96553.0,96547.0,0.13977353]
[1733017299732,0.08308613,96553.0,96547.0,0.0009906]
[1733017299943,0.08308613,96553.0,96552.0,0.0045317]
[1733017300155,0.12868613,96553.0,96547.0,0.0009906]
[1733017300369,0.12868613,96553.0,96552.0,0.0045317]
[1733017300585,0.12868613,96553.0,96549.0,0.001]
[1733017300770,0.12868613,96553.0,96552.0,0.0045317]
[1733017301048,0.12868613,96553.0,96547.0,0.0009906]
[1733017301290,0.12868613,96553.0,96552.0,0.0045317]
[1733017301497,0.1239272,96553.0,96549.0,0.001]
[1733017301719,0.1239272,96553.0,96552.0,0.0045317]
[1733017301943,0.1239272,96553.0,96551.0,0.207142]
[1733017301944,0.0783272,96553.0,96551.0,0.207142]
[1733017302160,0.0783272,96553.0,96552.0,0.0045317]
[1733017302585,0.0783272,96553.0,96552.0,0.1432328]
[1733017303010,0.0783272,96553.0,96552.0,0.1462328]
[1733017303223,0.0783272,96553.0,96552.0,0.1432455]
[1733017303652,0.0783272,96553.0,96552.0,0.0075317]
[1733017305053,0.0783272,96553.0,96552.0,0.0125317]
[1733017306182,0.0783272,96553.0,96552.0,0.19752247]
[1733017307387,0.0783272,96553.0,96552.0,0.0125317]
[1733017308261,0.0783272,96553.0,96552.0,0.02349159]
[1733017309339,0.0783272,96553.0,96552.0,0.25473005]
[1733017310285,0.0783272,96553.0,96552.0,0.02349159]
[1733017311714,0.0783272,96553.0,96552.0,0.01849159]
[1733017311836,0.0783272,96553.0,96552.0,0.01549159]
[1733017312064,0.0783272,96553.0,96552.0,0.02049159]
[1733017312277,0.0783272,96553.0,96552.0,0.02349159]
[1733017321868,0.0017272,96553.0,96552.0,0.04649159]
[1733017322082,0.0017272,96553.0,96552.0,0.04717852]
[1733017322291,0.0017272,96553.0,96552.0,0.19717852]
[1733017322506,0.0017272,96553.0,96552.0,0.19832449]
[1733017322919,0.0017272,96553.0,96552.0,0.60875013]
[1733017323123,0.0017272,96553.0,96552.0,0.60391723]
[1733017323361,0.0017272,96553.0,96552.0,0.19349159]
[1733017323543,0.0017272,96553.0,96552.0,0.04402128]
[1733017324029,0.0017272,96553.0,96552.0,0.59958379]
[1733017324253,0.0027272,96553.0,96552.0,0.19449159]
[1733017324470,0.1279,96566.0,96563.0,0.207116]
[1733017324679,0.1279,96566.0,96565.0,0.0009922]
[1733017325100,0.1279,96566.0,96565.0,0.00551307]
[1733017325399,0.1279,96566.0,96565.0,0.21262707]
[1733017325982,0.1279,96566.0,96565.0,0.21462707]
[1733017326181,0.1279,96566.0,96565.0,0.00751307]
[1733017326430,0.1279,96566.0,96565.0,0.21462707]
[1733017327742,0.1279,96566.0,96565.0,0.22543011]
[1733017329148,0.1279,96566.0,96565.0,0.01831611]
[1733017330218,0.1279,96566.0,96565.0,0.29643351]
[1733017330633,0.1279,96566.0,96565.0,0.01831611]
[1733017331050,0.1279,96566.0,96565.0,0.29674018]
[1733017331379,0.1279,96566.0,96565.0,0.01831611]
[1733017331620,0.1279,96566.0,96565.0,0.29674018]
[1733017332280,0.1279,96566.0,96565.0,0.01831611]
[1733017332434,0.1279,96566.0,96565.0,0.29680527]
[1733017332866,0.1279,96566.0,96565.0,0.01831611]
[1733017334156,0.33977093,96566.0,96565.0,0.0029922]
[1733017334389,0.33977093,96566.0,96565.0,0.00750627]
[1733017334644,0.44261614,96566.0,96565.0,0.23968499]
[1733017334862,0.44261614,96566.0,96565.0,0.23868499]
[1733017335079,0.44261614,96566.0,96565.0,0.00650627]
[1733017335315,0.44261614,96566.0,96565.0,0.00550627]
[1733017335316,0.44361614,96566.0,96565.0,0.00550627]
[1733017335520,0.44661614,96566.0,96565.0,0.00451407]
[1733017335764,0.44661614,96566.0,96559.0,0.0009915]
[1733017335765,0.33888393,96560.0,96559.0,0.0009915]
[1733017335974,0.33888393,96560.0,96559.0,0.00551217]
[1733017336591,0.44172914,96560.0,96559.0,0.00551217]
[1733017336816,0.44172914,96560.0,96559.0,0.0009915]
[1733017337030,0.44172914,96560.0,96559.0,0.00551217]
[1733017337255,0.44172914,96560.0,96559.0,0.0009915]
[1733017337679,0.44272914,96560.0,96559.0,0.0009915]
[1733017338617,0.44572914,96560.0,96559.0,0.0009915]
[1733017341729,0.33165,96548.0,96547.0,0.13933598]
[1733017341942,0.33165,96548.0,96547.0,0.13951447]
[1733017342184,0.33165,96548.0,96547.0,0.14404394]
[1733017342605,0.33165,96548.0,96547.0,0.00470796]
[1733017343048,0.33640893,96548.0,96547.0,0.00470796]
[1733017343267,0.43925414,96548.0,96547.0,0.00670796]
[1733017343702,0.43925414,96548.0,96547.0,0.00317849]
[1733017344132,0.44225414,96548.0,96547.0,0.00017849]
[1733017344360,0.46930454,96548.0,96547.0,0.00117849]
[1733017346137,0.48057252,96548.0,96547.0,0.00117849]
[1733017346350,0.21195193,96528.0,96527.0,0.0008635]
[1733017346559,0.33695193,96528.0,96527.0,0.0008635]
[1733017346765,0.33695193,96528.0,96527.0,0.00541441]
[1733017346994,0.33695193,96528.0,96527.0,0.0008635]
[1733017347640,0.33695193,96528.0,96527.0,0.0028635]
[1733017348056,0.33695193,96528.0,96527.0,0.0058635]
[1733017348894,0.35810392,96528.0,96527.0,0.0038635]
[1733017349333,0.35810392,96528.0,96527.0,0.0058635]
[1733017351445,0.35810392,96528.0,96527.0,0.0028635]
[1733017351660,0.35810392,96528.0,96527.0,0.0058635]
[1733017351876,0.35810392,96528.0,96527.0,0.0038635]
[1733017352316,0.35810392,96528.0,96527.0,0.0058635]
[1733017352765,0.33695193,96528.0,96527.0,0.0058635]
[1733017358422,0.12975893,96528.0,96518.0,0.08122122]
[1733017359298,0.00475893,96526.0,96518.0,0.0830549]
[1733017359514,0.00475893,96524.0,96518.0,0.08122122]
[1733017359734,0.12975893,96528.0,96518.0,0.08505489]
[1733017359958,0.12975893,96528.0,96519.0,0.207213]
[1733017360171,0.00475893,96526.0,96519.0,0.207213]
[1733017360386,0.12975893,96528.0,96519.0,0.207213]
[1733017360843,0.00475893,96527.0,96519.0,0.207213]
[1733017361055,0.12975893,96528.0,96519.0,0.207213]
[1733017361296,0.12975893,96528.0,96518.0,0.08508452]
[1733017361297,0.125,96528.0,96518.0,0.08208452]
[1733017361548,0.0817,96535.0,96519.0,0.023]
[1733017361805,0.0499,96536.0,96533.0,0.207182]
[1733017362033,0.0817,96540.0,96533.0,0.207182]
[1733017362257,0.0817,96540.0,96534.0,0.20718]
[1733017362480,0.0817,96546.0,96535.0,0.0018334]
[1733017362699,0.0817,96546.0,96542.0,0.207162]
[1733017362920,0.00017852,96548.0,96542.0,0.207162]
[1733017363356,0.00017852,96548.0,96542.0,0.0018332]
[1733017364426,0.003,96546.0,96542.0,0.0018332]
[1733017365305,0.01,96546.0,96542.0,0.0028332]
[1733017365572,0.00017852,96548.0,96542.0,0.0018332]
[1733017366476,0.00017852,96548.0,96542.0,0.01305554]
[1733017366903,0.00017852,96548.0,96542.0,0.0018332]
[1733017367996,0.00017852,96548.0,96542.0,0.0028332]
[1733017368209,0.00017852,96548.0,96543.0,0.00436741]
[1733017372177,0.00190572,96548.0,96543.0,0.00436741]
[1733017379447,0.00190572,96548.0,96543.0,0.14322478]
[1733017380479,0.00190572,96548.0,96544.0,0.13885737]
[1733017380702,0.00190572,96548.0,96544.0,0.14321089]
[1733017380987,0.00190572,96548.0,96544.0,0.14335555]
[1733017382784,0.00190572,96548.0,96545.0,0.13900203]
[1733017383007,0.0825,96546.0,96545.0,0.13900203]
[1733017383222,0.1303,96544.0,96543.0,0.13900203]
[1733017383439,0.1303,96544.0,96542.0,0.13900203]
[1733017383702,0.1303,96544.0,96541.0,0.13900203]
[1733017383911,0.207161,96543.0,96542.0,0.13900203]
[1733017384131,0.1303,96544.0,96542.0,0.13900203]
[1733017384359,0.1303,96544.0,96541.0,0.13900203]
[1733017384575,0.207161,96543.0,96541.0,0.13900203]
[1733017384801,0.21192393,96541.0,96540.0,0.13900203]
[1733017385043,0.13505893,96537.0,96536.0,0.13900203]
[1733017385258,0.207165,96541.0,96529.0,0.13900203]
[1733017385259,0.0825,96534.0,96529.0,0.13900203]
[1733017385485,0.0825,96534.0,96516.0,0.48522207]
[1733017385486,0.1303,96528.0,96527.0,0.13900203]
[1733017385700,0.207195,96527.0,96526.0,0.13900203]
[1733017385902,0.1303,96528.0,96526.0,0.13913711]
[1733017386536,0.1303,96528.0,96527.0,0.13913711]
[1733017386721,0.1303,96528.0,96526.0,0.18533605]
[1733017387152,0.1303,96528.0,96526.0,0.18550984]
[1733017387371,0.1303,96528.0,96527.0,0.18550984]
[1733017387592,0.1303,96528.0,96527.0,0.1855142]
[1733017387802,0.1303,96528.0,96527.0,0.001]
[1733017388862,0.1303,96528.0,96527.0,0.0076239]
[1733017389067,0.1303,96528.0,96527.0,0.0096239]
[1733017389716,0.0825,96528.0,96527.0,0.0096239]
[1733017389968,0.0786,96535.0,96533.0,0.207182]
[1733017390168,0.0786,96535.0,96532.0,0.13912974]
[1733017390375,0.0786,96535.0,96533.0,0.00662349]
[1733017390823,0.0786,96535.0,96533.0,0.14575323]
[1733017391060,0.0786,96535.0,96533.0,0.00662349]
[1733017391342,0.0786,96535.0,96534.0,0.00662342]
[1733017391343,0.0796,96535.0,96534.0,0.00662342]
[1733017393200,0.0786,96535.0,96534.0,0.00662342]
[1733017394479,0.0796,96535.0,96534.0,0.00662342]
[1733017394910,0.0786,96535.0,96534.0,0.00662342]
[1733017395144,0.0796,96535.0,96534.0,0.00662342]
[1733017395971,0.0786,96535.0,96534.0,0.00662342]
[1733017396414,0.0796,96535.0,96534.0,0.00662342]
[1733017397060,0.0796,96535.0,96534.0,0.14575316]
[1733017397895,0.0796,96535.0,96534.0,0.01198972]
[1733017398109,0.0786,96535.0,96534.0,0.19749604]
[1733017398342,0.0786,96535.0,96534.0,0.2438704]
[1733017398561,0.0786,96535.0,96534.0,0.01298972]
[1733017399016,0.0786,96540.0,96535.0,0.207178]
[1733017399222,0.0786,96540.0,96539.0,0.18549692]
[1733017399643,0.0786,96540.0,96539.0,0.18985956]
[1733017400094,0.0786,96540.0,96539.0,0.19648264]
[1733017400341,0.0786,96540.0,96539.0,0.01098572]
[1733017401230,0.0786,96540.0,96539.0,0.24285687]
[1733017401646,0.0786,96540.0,96539.0,0.01098572]
[1733017401868,0.0489,96542.0,96539.0,0.03398572]
[1733017402080,0.0798,96546.0,96540.0,0.23679001]
[1733017402299,0.0798,96546.0,96544.0,0.23191141]
[1733017402505,0.0798,96546.0,96545.0,0.23853408]
[1733017402709,0.0798,96546.0,96545.0,0.01098091]
[1733017403168,0.0818,96546.0,96545.0,0.01098091]
[1733017403599,0.0818,96546.0,96545.0,0.24289232]
[1733017403810,0.0798,96546.0,96545.0,0.01098091]
[1733017404015,0.0818,96546.0,96545.0,0.24289232]
[1733017404447,0.0818,96546.0,96545.0,0.01098091]
[1733017405059,0.0858,96546.0,96545.0,0.01098091]
[1733017405420,0.0818,96546.0,96545.0,0.01098091]
[1733017405669,0.0828,96546.0,96545.0,0.01098091]
[1733017405871,0.0798,96546.0,96545.0,0.01098091]
[1733017406975,0.0798,96546.0,96545.0,0.01198091]
[1733017407601,0.0798,96546.0,96545.0,0.01098091]
[1733017407817,0.0798,96546.0,96545.0,0.01198091]
[1733017408020,0.00190572,96548.0,96546.0,0.207155]
[1733017408246,0.00190572,96548.0,96547.0,0.02962253]
[1733017408452,0.00190572,96548.0,96547.0,0.03398152]
[1733017408891,0.00190572,96548.0,96547.0,0.31242944]
[1733017409106,0.0779,96559.0,96547.0,0.02735899]
[1733017409292,0.0779,96559.0,96553.0,0.30138929]
[1733017409557,0.0779,96559.0,96554.0,0.27838929]
[1733017409737,0.0779,96559.0,96554.0,0.28273738]
[1733017410486,0.0779,96559.0,96554.0,0.00434809]
[1733017410742,0.0779,96559.0,96554.0,0.21148509]
[1733017410929,0.0789,96559.0,96553.0,0.02962212]
[1733017411173,0.0789,96559.0,96555.0,0.00434735]
[1733017411378,0.0789,96559.0,96554.0,0.00434809]
[1733017411581,0.0819,96559.0,96556.0,0.00434662]
[1733017411794,0.0819,96559.0,96555.0,0.00434735]
[1733017412010,0.0819,96559.0,96557.0,0.00434589]
[1733017412220,0.0819,96559.0,96556.0,0.00434662]
[1733017412398,0.0779,96559.0,96553.0,0.04270374]
[1733017412627,0.0789,96559.0,96558.0,0.23184371]
[1733017412984,0.0789,96559.0,96558.0,0.23618886]
[1733017413182,0.0789,96559.0,96558.0,0.00434515]
[1733017413183,0.0819,96559.0,96558.0,0.00434515]
[1733017413586,0.0809,96559.0,96553.0,0.04270375]
[1733017413789,0.0809,96559.0,96558.0,0.00434515]
[1733017413991,0.0819,96559.0,96554.0,0.207137]
[1733017414204,0.0819,96559.0,96558.0,0.00434515]
[1733017414372,0.0789,96559.0,96554.0,0.207137]
[1733017414578,0.0789,96559.0,96558.0,0.00434515]
[1733017414781,0.0809,96559.0,96554.0,0.207137]
[1733017414981,0.0809,96559.0,96558.0,0.23610932]
[1733017415179,0.0789,96559.0,96555.0,0.207135]
[1733017415387,0.0779,96559.0,96558.0,0.00634515]
[1733017415704,0.0789,96559.0,96558.0,0.002]
[1733017415913,0.0789,96559.0,96558.0,0.23607438]
[1733017416116,0.0779,96559.0,96555.0,0.207134]
[1733017416291,0.0779,96559.0,96558.0,0.00434515]
[1733017416527,0.0779,96559.0,96555.0,0.207134]
[1733017416528,0.0789,96559.0,96555.0,0.207134]
[1733017416726,0.0789,96559.0,96558.0,0.00434515]
[1733017416909,0.0789,96559.0,96555.0,0.207134]
[1733017417109,0.0779,96559.0,96558.0,0.23600939]
[1733017417327,0.0779,96559.0,96555.0,0.208134]
[1733017417529,0.0779,96559.0,96558.0,0.23599838]
[1733017417737,0.0779,96559.0,96558.0,0.23165323]
[1733017417938,0.0779,96559.0,96558.0,0.23599838]
[1733017418142,0.0779,96559.0,96558.0,0.23799838]
[1733017418345,0.0779,96559.0,96558.0,0.23798076]
[1733017418584,0.0779,96559.0,96558.0,0.00634515]
[1733017419172,0.0779,96559.0,96558.0,0.00734515]
[1733017419381,0.0779,96559.0,96558.0,0.19263153]
[1733017419676,0.0779,96559.0,96558.0,0.19260194]
[1733017419893,0.0779,96559.0,96558.0,0.00734515]
[1733017420308,0.0779,96559.0,96558.0,0.19260194]
[1733017420518,0.0779,96559.0,96558.0,0.00634515]
[1733017420971,0.0779,96559.0,96558.0,0.18960194]
[1733017421599,0.0779,96559.0,96558.0,0.00434515]
[1733017421824,0.0796278,96559.0,96558.0,0.00434515]
[1733017422339,0.0796278,96559.0,96558.0,0.00534515]
[1733017422569,0.0796278,96559.0,96558.0,0.00634515]
[1733017423029,0.0796278,96559.0,96558.0,0.14525557]
[1733017423258,0.1250278,96559.0,96558.0,0.14525557]
[1733017423551,0.1250278,96559.0,96558.0,0.14524337]
[1733017424221,0.1250278,96559.0,96558.0,0.00634515]
[1733017425281,0.0796278,96559.0,96558.0,0.02934515]
[1733017425511,0.0017278,96559.0,96558.0,0.02934515]
[1733017425719,0.0017278,96559.0,96558.0,0.03117806]
[1733017425945,0.0017278,96559.0,96558.0,0.02934515]
[1733017429012,0.0017278,96559.0,96558.0,0.21460194]
[1733017429218,0.0017278,96559.0,96558.0,0.02934515]
[1733017431260,0.0017278,96559.0,96558.0,0.16821896]
[1733017431563,0.0017278,96559.0,96558.0,0.02934515]
[1733017431765,0.0017278,96559.0,96558.0,0.21449944]
[1733017432173,0.0017278,96559.0,96558.0,0.02934515]
[1733017432524,0.0017278,96559.0,96558.0,0.21452643]
[1733017433724,0.0017278,96559.0,96558.0,0.21453717]
[1733017433873,0.0017278,96559.0,96558.0,0.02934515]
[1733017434285,0.0017278,96559.0,96558.0,0.21453643]
[1733017434491,0.0017278,96559.0,96558.0,0.02934515]
[1733017435136,0.0017278,96559.0,96558.0,0.21455699]
[1733017435347,0.0017278,96559.0,96558.0,0.02934515]
[1733017435555,0.0017278,96559.0,96558.0,0.26075254]
[1733017437427,0.0454,96563.0,96558.0,0.02934515]
[1733017438176,0.20712,96562.0,96560.0,0.18523634]
[1733017438414,0.126,96561.0,96560.0,0.18523634]
[1733017439272,0.126,96561.0,96558.0,0.23155999]
[1733017439823,0.126,96561.0,96560.0,0.18524799]
[1733017440504,0.126,96561.0,96559.0,0.23155999]
[1733017440702,0.126,96561.0,96560.0,0.23155999]
[1733017440914,0.126,96561.0,96555.0,0.023]
[1733017441526,0.126,96561.0,96560.0,0.23163807]
[1733017441734,0.126,96561.0,96554.0,0.023]
[1733017442384,0.126,96561.0,96554.0,0.30087199]
[1733017443019,0.126,96561.0,96556.0,0.023]
[1733017443240,0.12518836,96561.0,96556.0,0.023]
[1733017443461,0.207125,96560.0,96558.0,0.023]
[1733017443700,0.12518836,96561.0,96559.0,0.00378807]
[1733017444123,0.207125,96560.0,96559.0,0.00378807]
[1733017444345,0.257025,96560.0,96559.0,0.00378807]
[1733017444581,0.257025,96560.0,96554.0,0.023]
[1733017444781,0.257025,96560.0,96559.0,0.00378807]
[1733017444978,0.0499,96560.0,96554.0,0.023]
[1733017445182,0.0499,96560.0,96559.0,0.00378807]
[1733017445388,0.0499,96560.0,96556.0,0.30087199]
[1733017445596,0.0499,96560.0,96559.0,0.00378807]
[1733017445792,0.0499,96560.0,96556.0,0.30087199]
[1733017445793,0.0499,96560.0,96556.0,0.023]
[1733017445987,0.0499,96560.0,96559.0,0.00378807]
[1733017446232,0.0499,96560.0,96556.0,0.023]
[1733017446233,0.0832,96559.0,96556.0,0.023]
[1733017446420,0.0832,96559.0,96556.0,0.30087199]
[1733017446706,0.0832,96559.0,96558.0,0.023]
[1733017447141,0.0832,96559.0,96557.0,0.023]
[1733017447561,0.0832,96559.0,96557.0,0.30087199]
[1733017447742,0.0832,96559.0,96558.0,0.27787199]
[1733017447949,0.0832,96559.0,96558.0,0.023]
[1733017448873,0.0832,96559.0,96558.0,0.30087199]
[1733017449083,0.0832,96559.0,96558.0,0.30187199]
[1733017450216,0.0832,96559.0,96558.0,0.27942847]
[1733017450430,0.0832,96559.0,96558.0,0.30443404]
[1733017450659,0.0832,96559.0,96558.0,0.026]
[1733017455244,0.0832,96559.0,96558.0,0.025]
[1733017456204,0.0832,96559.0,96558.0,0.023]
[1733017456424,0.0832,96559.0,96557.0,0.023]
[1733017456839,0.0832,96559.0,96558.0,0.001]
[1733017457075,0.0832,96559.0,96558.0,0.026]
[1733017457308,0.0832,96559.0,96558.0,0.025]
[1733017457975,0.0832,96559.0,96558.0,0.02865516]
[1733017458478,0.0832,96559.0,96558.0,0.02965516]
[1733017460038,0.0832,96559.0,96558.0,0.02865516]
[1733017460483,0.0832,96559.0,96558.0,0.02965516]
[1733017460698,0.0832,96559.0,96558.0,0.02765516]
[1733017460910,0.0832,96559.0,96558.0,0.02865516]
[1733017461357,0.0832,96559.0,96558.0,0.02765516]
[1733017461563,0.0832,96559.0,96558.0,0.02965516]
[1733017462425,0.1319,96559.0,96558.0,0.00665516]
[1733017462637,0.13665893,96559.0,96558.0,0.00665516]
[1733017463690,0.24133752,96559.0,96558.0,0.28564054]
[1733017463899,0.23950414,96559.0,96558.0,0.00665516]
[1733017464335,0.23950414,96559.0,96558.0,0.1926199]
[1733017464549,0.23950414,96559.0,96558.0,0.00665516]
[1733017464763,0.23950414,96559.0,96558.0,0.00565516]
[1733017464971,0.23950414,96559.0,96558.0,0.00365516]
[1733017465191,0.24650414,96559.0,96558.0,0.14412399]
[1733017465396,0.23950414,96559.0,96558.0,0.00365516]
[1733017465599,0.414258,96558.0,96554.0,0.0008635]
[1733017465845,0.00475893,96555.0,96554.0,0.0008635]
[1733017466070,0.23713752,96555.0,96554.0,0.0008635]
[1733017466308,0.23530414,96555.0,96554.0,0.0008635]
[1733017467663,0.23930414,96555.0,96554.0,0.0008635]
[1733017468058,0.23930414,96555.0,96554.0,0.0018635]
[1733017468264,0.23930414,96555.0,96554.0,0.0008635]
[1733017468677,0.24730414,96555.0,96554.0,0.0018635]
[1733017469804,0.26811135,96555.0,96554.0,0.0018635]
[1733017497613,0.30046535,96555.0,96554.0,0.0018635]
[1733017499398,0.45046535,96555.0,96554.0,0.0018635]
[1733017500423,0.44246535,96555.0,96554.0,0.0008635]
[1733017500638,0.43846535,96555.0,96554.0,0.0008635]
[1733017500842,0.44746535,96555.0,96554.0,0.0018635]
[1733017501051,0.45346535,96555.0,96554.0,0.0018635]
[1733017503195,0.50799593,96554.0,96553.0,6.2e-07]
[1733017503415,0.48800693,96549.0,96548.0,0.0008636]
[1733017503668,0.62320614,96549.0,96548.0,0.0008636]
[1733017507015,0.63120614,96549.0,96548.0,0.0008636]
[1733017507554,0.63520614,96549.0,96548.0,0.0008636]
[1733017509093,0.64520614,96549.0,96548.0,0.0008636]
[1733017514557,0.63044721,96549.0,96548.0,0.0008636]
[1733017514772,0.63520614,96549.0,96548.0,0.0008636]
[1733017514984,0.60285214,96549.0,96548.0,0.0008636]
[1733017521119,0.63516191,96549.0,96548.0,0.0008636]
[1733017523846,0.64516191,96549.0,96548.0,0.0008636]
[1733017530160,0.63516191,96549.0,96548.0,0.0008636]
[1733017530809,0.45285214,96549.0,96548.0,0.0008636]
[1733017531041,0.32199321,96549.0,96548.0,0.0008636]
[1733017531265,0.32675214,96549.0,96548.0,0.0008636]
[1733017536118,0.44825214,96549.0,96548.0,0.0008636]
[1733017536333,0.48059234,96549.0,96548.0,0.0008636]
[1733017539880,0.47559234,96549.0,96548.0,0.0008636]
[1733017542608,0.47059234,96549.0,96548.0,0.0008636]
[1733017550006,0.48059234,96549.0,96548.0,0.0008636]
[1733017550227,0.63059234,96549.0,96548.0,0.0008636]
[1733017551730,0.63231954,96549.0,96548.0,0.0008636]
[1733017552405,0.62231954,96549.0,96548.0,0.0008636]
[1733017556784,0.47231954,96549.0,96548.0,0.0008636]
[1733017557002,0.39487934,96549.0,96548.0,0.0008636]
[1733017557896,0.31847934,96549.0,96548.0,0.0008636]
[1733017558617,0.31847934,96549.0,96548.0,0.0045633]
[1733017559037,0.31847934,96549.0,96548.0,0.0008636]
[1733017559260,0.31847934,96549.0,96548.0,0.0045633]
[1733017559705,0.31847934,96549.0,96548.0,0.14405026]
[1733017560817,0.31847934,96549.0,96548.0,0.14399143]
[1733017561263,0.31847934,96549.0,96548.0,0.0045633]
[1733017561731,0.31847934,96549.0,96548.0,0.14399143]
[1733017561941,0.31847934,96549.0,96548.0,0.0045633]
[1733017562805,0.44267934,96549.0,96548.0,0.0045633]
[1733017564137,0.44267934,96549.0,96548.0,0.0008636]
[1733017565674,0.45374805,96549.0,96548.0,0.0008636]
[1733017569307,0.31847934,96549.0,96548.0,0.0008636]
[1733017570034,0.31847934,96549.0,96548.0,0.00450207]
[1733017574584,0.31847934,96549.0,96548.0,0.0008636]
[1733017574990,0.31847934,96549.0,96548.0,0.00450023]
[1733017576530,0.12133134,96549.0,96548.0,0.00450023]
[1733017583746,0.12316472,96549.0,96548.0,0.00450023]